bitfinex/quotes_BTCUSD_20240831
["timestamp","ask_amount","ask_price","bid_price","bid_amount"]
[1725144152363,4.69146373,59227.0,59226.0,0.0008998]
[1725144158602,4.68146373,59227.0,59226.0,0.0008998]
[1725144158804,4.69146373,59227.0,59226.0,0.0008998]
[1725144161295,2.28130773,59227.0,59226.0,0.0008998]
[1725144161520,4.87319973,59227.0,59226.0,0.0008998]
[1725144161750,2.28130773,59227.0,59226.0,0.0008998]
[1725144161957,4.87319973,59227.0,59226.0,0.0008998]
[1725144162172,4.53551673,59227.0,59226.0,0.0008998]
[1725144162611,4.87319973,59227.0,59226.0,0.0008998]
[1725144165377,4.53551673,59227.0,59226.0,0.0008998]
[1725144167509,4.33060973,59227.0,59226.0,0.0008998]
[1725144168365,4.66829273,59227.0,59226.0,0.0008998]
[1725144168789,3.38216768,59227.0,59226.0,0.1406998]
[1725144169017,2.78244813,59227.0,59226.0,0.1406998]
[1725144169235,2.77744813,59227.0,59226.0,0.1406998]
[1725144169453,2.77244813,59227.0,59226.0,0.1406998]
[1725144172487,2.64572453,59227.0,59226.0,0.1406998]
[1725144173558,2.77249205,59227.0,59226.0,0.1406998]
[1725144173796,2.77250808,59227.0,59226.0,0.1406998]
[1725144174214,1.88549808,59227.0,59226.0,0.1406998]
[1725144174424,3.43523708,59227.0,59226.0,0.1406998]
[1725144175712,2.98246508,59227.0,59226.0,0.1406998]
[1725144176213,2.45294508,59227.0,59226.0,0.1406998]
[1725144176466,2.30557153,59227.0,59226.0,0.1406998]
[1725144177924,2.30057153,59227.0,59226.0,0.1406998]
[1725144178170,2.30557153,59227.0,59226.0,0.1406998]
[1725144179301,2.30836791,59227.0,59226.0,0.1406998]
[1725144186095,2.01017321,59227.0,59226.0,0.1406998]
[1725144187491,2.34785621,59227.0,59226.0,0.1406998]
[1725144188623,3.44699921,59227.0,59226.0,0.1406998]
[1725144189074,3.42698321,59227.0,59226.0,0.1406998]
[1725144189705,2.47627021,59227.0,59226.0,0.1406998]
[1725144189933,2.43974321,59227.0,59226.0,0.1406998]
[1725144190555,2.44474321,59227.0,59226.0,0.1406998]
[1725144194809,2.43974321,59227.0,59226.0,0.1406998]
[1725144196326,1.5562048,59227.0,59226.0,0.1406998]
[1725144196547,1.45831621,59227.0,59226.0,0.1406998]
[1725144196757,1.60162721,59227.0,59226.0,0.1406998]
[1725144211389,1.59569055,59227.0,59226.0,0.1406998]
[1725144211587,1.60162713,59227.0,59226.0,0.1406998]
[1725144214585,1.93931013,59227.0,59226.0,0.1406998]
[1725144214786,1.64894107,59227.0,59226.0,0.1406998]
[1725144215385,1.98662407,59227.0,59226.0,0.1406998]
[1725144215593,1.64894107,59227.0,59226.0,0.1406998]
[1725144216010,2.18100407,59227.0,59226.0,0.1406998]
[1725144216639,2.51868707,59227.0,59226.0,0.1406998]
[1725144233555,2.77469507,59227.0,59226.0,0.1406998]
[1725144234173,2.69469507,59227.0,59226.0,0.1406998]
[1725144234600,2.65318507,59227.0,59226.0,0.1406998]
[1725144236051,2.52582207,59227.0,59226.0,0.1406998]
[1725144236254,2.47090707,59227.0,59226.0,0.1406998]
[1725144237891,2.4297414,59227.0,59226.0,0.1406998]
[1725144240613,2.4297414,59227.0,59226.0,0.0622998]
[1725144242747,2.7674244,59227.0,59226.0,0.0008998]
[1725144256191,2.4297414,59227.0,59226.0,0.0008998]
[1725144256843,2.32311899,59227.0,59226.0,0.0008998]
[1725144257078,2.7674244,59227.0,59226.0,0.0008998]
[1725144259670,2.7674244,59227.0,59226.0,0.0649998]
[1725144264653,2.4297414,59227.0,59226.0,0.0649998]
[1725144271779,2.32311899,59227.0,59226.0,0.0649998]
[1725144271979,2.4297414,59227.0,59226.0,0.1403998]
[1725144280291,3.9107204,59227.0,59226.0,0.1403998]
[1725144281177,3.6410614,59227.0,59226.0,0.1403998]
[1725144281390,3.9099024,59227.0,59226.0,0.1403998]
[1725144282008,4.2475854,59227.0,59226.0,0.1403998]
[1725144282209,3.9099024,59227.0,59226.0,0.1403998]
[1725144285834,4.2475854,59227.0,59226.0,0.1403998]
[1725144286032,3.9099024,59227.0,59226.0,0.1403998]
[1725144286955,3.6872734,59227.0,59226.0,0.1403998]
[1725144288144,3.68112513,59227.0,59226.0,0.1403998]
[1725144288954,3.65071613,59227.0,59226.0,0.1403998]
[1725144291725,3.65153413,59227.0,59226.0,0.1403998]
[1725144292116,3.55885013,59227.0,59226.0,0.1403998]
[1725144294065,3.21913013,59227.0,59226.0,0.1403998]
[1725144295617,2.91896713,59227.0,59226.0,0.1403998]
[1725144295851,2.60041113,59227.0,59226.0,0.1403998]
[1725144297699,1.63256072,59227.0,59226.0,0.1403998]
[1725144297902,1.72052913,59227.0,59226.0,0.1403998]
[1725144299562,2.19827113,59227.0,59226.0,0.1403998]
[1725144300934,2.17777113,59227.0,59226.0,0.1403998]
[1725144301185,2.09845213,59227.0,59226.0,0.1403998]
[1725144303004,2.04150249,59227.0,59226.0,0.1403998]
[1725144303481,1.97285949,59227.0,59226.0,0.1403998]
[1725144305334,2.31054249,59227.0,59226.0,0.1403998]
[1725144305554,1.97285949,59227.0,59226.0,0.1403998]
[1725144306077,2.31054249,59227.0,59226.0,0.1403998]
[1725144306768,1.97285949,59227.0,59226.0,0.1403998]
[1725144307005,1.97960453,59227.0,59226.0,0.1403998]
[1725144307236,2.31728753,59227.0,59226.0,0.1403998]
[1725144310440,2.53595725,59227.0,59226.0,0.0008998]
[1725144310646,2.48583917,59227.0,59226.0,0.0008998]
[1725144311285,2.31728753,59227.0,59226.0,0.0008998]
[1725144312379,2.65497053,59227.0,59226.0,0.0008998]
[1725144316639,2.65497053,59227.0,59226.0,0.0625998]
[1725144319010,2.65339725,59227.0,59226.0,0.0625998]
[1725144321381,2.31571425,59227.0,59226.0,0.0625998]
[1725144329493,2.31571425,59227.0,59226.0,0.0008998]
[1725144329956,4.06430325,59227.0,59226.0,0.0008998]
[1725144330153,4.04735925,59227.0,59226.0,0.0008998]
[1725144330364,4.01720925,59227.0,59226.0,0.0008998]
[1725144330562,4.00658325,59227.0,59226.0,0.0008998]
[1725144330790,3.91552825,59227.0,59226.0,0.0008998]
[1725144332071,3.91552825,59227.0,59226.0,0.0622998]
[1725144332562,3.57784525,59227.0,59226.0,0.0622998]
[1725144333170,3.91552825,59227.0,59226.0,0.0622998]
[1725144340597,4.25321125,59227.0,59226.0,0.0622998]
[1725144341291,3.91552825,59227.0,59226.0,0.0622998]
[1725144342479,4.25321125,59227.0,59226.0,0.0622998]
[1725144346909,0.675436,59221.0,59220.0,0.0008998]
[1725144347145,0.675436,59221.0,59211.0,0.1]
[1725144347146,0.168878,59214.0,59211.0,0.1]
[1725144347380,3.85789641,59214.0,59211.0,0.1]
[1725144347614,3.01560205,59214.0,59211.0,0.1]
[1725144347915,2.22367041,59214.0,59211.0,0.1]
[1725144348527,2.21183841,59214.0,59211.0,0.1]
[1725144349521,1.77954241,59214.0,59211.0,0.1]
[1725144349779,1.46349691,59214.0,59211.0,0.1]
[1725144350018,1.46349691,59214.0,59213.0,0.1484009]
[1725144350263,1.47649691,59214.0,59213.0,0.1484009]
[1725144350492,1.48849691,59214.0,59213.0,0.1484009]
[1725144359144,2.01705491,59214.0,59213.0,0.1484009]
[1725144359367,2.16767255,59214.0,59213.0,0.1484009]
[1725144361500,1.99879455,59214.0,59213.0,0.1484009]
[1725144361711,1.76491636,59214.0,59213.0,0.1484009]
[1725144362157,1.87859036,59214.0,59213.0,0.1484009]
[1725144362588,1.67167836,59214.0,59213.0,0.1484009]
[1725144365658,2.16490436,59214.0,59213.0,0.1484009]
[1725144367474,2.10430336,59214.0,59213.0,0.1484009]
[1725144368858,2.610612,59214.0,59213.0,0.0009009]
[1725144369079,2.61735853,59214.0,59213.0,0.0009009]
[1725144369301,2.44880689,59214.0,59213.0,0.0009009]
[1725144375496,2.44962589,59214.0,59213.0,0.0009009]
[1725144381777,2.53288644,59214.0,59213.0,0.0009009]
[1725144393144,3.30314244,59214.0,59213.0,0.0009009]
[1725144404764,3.27816544,59214.0,59213.0,0.0009009]
[1725144406496,2.00237108,59214.0,59213.0,0.0009009]
[1725144406722,4.00952708,59214.0,59213.0,0.0009009]
[1725144406946,4.03081608,59214.0,59213.0,0.0009009]
[1725144407437,4.00952708,59214.0,59213.0,0.0009009]
[1725144408084,3.84097544,59214.0,59213.0,0.0009009]
[1725144408296,3.73435303,59214.0,59213.0,0.0009009]
[1725144408512,2.83859744,59214.0,59213.0,0.0642009]
[1725144413069,2.83859744,59214.0,59213.0,0.1468009]
[1725144413070,2.0452735,59214.0,59213.0,0.1468009]
[1725144413284,1.96652791,59214.0,59213.0,0.1468009]
[1725144414153,1.94002741,59214.0,59213.0,0.1468009]
[1725144416233,1.80057241,59214.0,59213.0,0.1468009]
[1725144419150,1.90329041,59214.0,59213.0,0.1468009]
[1725144419622,1.91003726,59214.0,59213.0,0.1468009]
[1725144420875,1.96015534,59214.0,59213.0,0.1468009]
[1725144421073,1.96015534,59214.0,59213.0,0.0642009]
[1725144421294,1.98665497,59214.0,59213.0,0.0642009]
[1725144421870,1.93653689,59214.0,59213.0,0.0642009]
[1725144423946,2.10508853,59214.0,59213.0,0.0642009]
[1725144424444,2.10508853,59214.0,59213.0,0.0009009]
[1725144425500,1.93653689,59214.0,59213.0,0.0009009]
[1725144428594,3.01558189,59214.0,59213.0,0.0009009]
[1725144431218,2.92648289,59214.0,59213.0,0.0009009]
[1725144436293,2.79551789,59214.0,59213.0,0.0666009]
[1725144436503,2.58194689,59214.0,59213.0,0.0666009]
[1725144438531,2.58194689,59214.0,59213.0,0.1450009]
[1725144438532,1.58464663,59214.0,59213.0,0.1450009]
[1725144438747,1.48931504,59214.0,59213.0,0.1450009]
[1725144438950,1.46281541,59214.0,59213.0,0.1450009]
[1725144443027,1.12505841,59214.0,59213.0,0.1450009]
[1725144443333,1.10334691,59214.0,59213.0,0.1450009]
[1725144443537,0.9967245,59214.0,59213.0,0.1470009]
[1725144443959,1.06534691,59214.0,59213.0,0.1470009]
[1725144444382,1.06634691,59214.0,59213.0,0.1470009]
[1725144444601,1.06534691,59214.0,59213.0,0.1470009]
[1725144445510,1.06634691,59214.0,59213.0,0.1470009]
[1725144445941,1.06534691,59214.0,59213.0,0.1470009]
[1725144446161,1.06534691,59214.0,59213.0,0.1480009]
[1725144454732,1.06534691,59214.0,59213.0,0.1460009]
[1725144455100,1.06534691,59214.0,59213.0,0.1480009]
[1725144461600,1.06534691,59214.0,59213.0,0.1460009]
[1725144467095,1.06534691,59214.0,59213.0,0.1480009]
[1725144473905,1.40310391,59214.0,59213.0,0.0676009]
[1725144474173,1.06534691,59214.0,59213.0,0.0676009]
[1725144477231,1.06534691,59214.0,59213.0,0.0019009]
[1725144480398,1.06534691,59214.0,59213.0,0.0039009]
[1725144480811,1.06534691,59214.0,59213.0,0.0019009]
[1725144481411,2.10380191,59214.0,59213.0,0.0019009]
[1725144481895,1.94571991,59214.0,59213.0,0.0019009]
[1725144483082,1.87741591,59214.0,59213.0,0.0019009]
[1725144483553,1.93262691,59214.0,59213.0,0.0019009]
[1725144483806,1.53575891,59214.0,59213.0,0.0019009]
[1725144484939,1.53575891,59214.0,59213.0,0.0009009]
[1725144485173,1.54275891,59214.0,59213.0,0.0009009]
[1725144485387,1.53875891,59214.0,59213.0,0.0009009]
[1725144486533,1.53575891,59214.0,59213.0,0.0009009]
[1725144487193,1.53975891,59214.0,59213.0,0.0009009]
[1725144487643,1.53575891,59214.0,59213.0,0.0009009]
[1725144491847,1.53975891,59214.0,59213.0,0.0009009]
[1725144493156,1.53875891,59214.0,59213.0,0.0009009]
[1725144493364,1.53975891,59214.0,59213.0,0.0650009]
[1725144493573,1.53675891,59214.0,59213.0,0.0650009]
[1725144494407,1.53775891,59214.0,59213.0,0.0650009]
[1725144496291,1.53775891,59214.0,59213.0,0.0009009]
[1725144500132,1.59785891,59214.0,59213.0,0.0009009]
[1725144501032,1.53775891,59214.0,59213.0,0.0009009]
[1725144502696,1.54450633,59214.0,59213.0,0.0009009]
[1725144506046,1.43788392,59214.0,59213.0,0.0009009]
[1725144506270,1.54450633,59214.0,59213.0,0.0009009]
[1725144508188,1.20674933,59214.0,59213.0,0.0009009]
[1725144508678,1.10012692,59214.0,59213.0,0.0009009]
[1725144508917,1.72841633,59214.0,59213.0,0.0009009]
[1725144509145,1.69132533,59214.0,59213.0,0.0009009]
[1725144509370,2.02908233,59214.0,59213.0,0.0009009]
[1725144527702,2.02681079,59214.0,59213.0,0.0009009]
[1725144546931,2.02681079,59214.0,59213.0,0.0640009]
[1725144551562,2.01709379,59214.0,59213.0,0.0640009]
[1725144551990,1.95954079,59214.0,59213.0,0.0640009]
[1725144552856,0.96520038,59214.0,59213.0,0.1472009]
[1725144553094,0.95845296,59214.0,59213.0,0.1472009]
[1725144553767,0.95745296,59214.0,59213.0,0.1472009]
[1725144553982,0.95745296,59214.0,59213.0,0.1492009]
[1725144554179,0.95745296,59214.0,59213.0,0.1472009]
[1725144554432,0.95645296,59214.0,59213.0,0.1472009]
[1725144554933,0.95645296,59214.0,59213.0,0.1492009]
[1725144555629,0.95745296,59214.0,59213.0,0.1492009]
[1725144556088,0.95645296,59214.0,59213.0,0.1492009]
[1725144556315,0.98295148,59214.0,59213.0,0.1492009]
[1725144560396,0.98295148,59214.0,59213.0,0.1472009]
[1725144560830,0.98295148,59214.0,59213.0,0.1492009]
[1725144563892,0.64519448,59214.0,59213.0,0.1492009]
[1725144565917,0.64519448,59214.0,59213.0,0.1472009]
[1725144567955,0.98295148,59214.0,59213.0,0.1472009]
[1725144571241,1.32070848,59214.0,59213.0,0.0009009]
[1725144571452,2.78656996,59214.0,59213.0,0.0009009]
[1725144571664,1.50916996,59214.0,59213.0,0.0009009]
[1725144572506,1.45500396,59214.0,59213.0,0.0009009]
[1725144573335,1.44174696,59214.0,59213.0,0.0009009]
[1725144576077,1.46824592,59214.0,59213.0,0.0009009]
[1725144577394,2.74564592,59214.0,59213.0,0.0009009]
[1725144580296,2.71914696,59214.0,59213.0,0.0009009]
[1725144581231,2.74564594,59214.0,59213.0,0.0009009]
[1725144582369,2.94221594,59214.0,59213.0,0.0009009]
[1725144583006,2.86209894,59214.0,59213.0,0.0009009]
[1725144583223,2.81690294,59214.0,59213.0,0.0009009]
[1725144597899,2.79912694,59214.0,59213.0,0.0009009]
[1725144601124,2.79912694,59214.0,59198.0,0.268924]
[1725144601125,1.1190011,59200.0,59198.0,0.268924]
[1725144601342,1.82525594,59214.0,59198.0,0.268924]
[1725144601343,1.1190011,59199.0,59198.0,0.268924]
[1725144601562,0.01125046,59199.0,59198.0,0.1]
[1725144602016,0.03775131,59199.0,59198.0,0.1]
[1725144602501,0.03775131,59199.0,59198.0,0.101]
[1725144602935,0.03775131,59199.0,59198.0,0.1]
[1725144603166,0.03875131,59199.0,59198.0,0.101]
[1725144604270,0.01225046,59199.0,59198.0,0.2459]
[1725144604445,0.01325046,59199.0,59198.0,0.2459]
[1725144606739,0.01325046,59199.0,59198.0,0.414824]
[1725144607169,0.002,59199.0,59198.0,0.414824]
[1725144607632,0.02850066,59199.0,59198.0,0.414824]
[1725144608747,0.002,59199.0,59198.0,0.314824]
[1725144612001,0.02850053,59199.0,59198.0,0.314824]
[1725144613737,0.02850053,59199.0,59198.0,0.36561107]
[1725144614806,0.02850053,59199.0,59198.0,0.36651087]
[1725144615453,0.02850053,59199.0,59198.0,0.19758687]
[1725144615676,0.03975134,59199.0,59198.0,0.1467998]
[1725144615894,1.15875244,59199.0,59198.0,0.1467998]
[1725144618591,0.01325081,59199.0,59198.0,0.1467998]
[1725144622012,0.03975196,59199.0,59198.0,0.1467998]
[1725144626352,0.20867296,59199.0,59198.0,0.1467998]
[1725144628724,0.18217181,59199.0,59198.0,0.1467998]
[1725144631633,0.17681232,59199.0,59198.0,0.1467998]
[1725144631856,0.20331352,59199.0,59198.0,0.1467998]
[1725144633789,1.32231462,59199.0,59198.0,0.1467998]
[1725144634863,1.29581342,59199.0,59198.0,0.1467998]
[1725144638095,1.32231463,59199.0,59198.0,0.1467998]
[1725144638768,1.29581342,59199.0,59198.0,0.1467998]
[1725144642044,1.32231459,59199.0,59198.0,0.1467998]
[1725144644877,1.29581342,59199.0,59198.0,0.1467998]
[1725144645528,1.63365642,59199.0,59198.0,0.1467998]
[1725144648191,1.66015765,59199.0,59198.0,0.1467998]
[1725144648400,1.32231465,59199.0,59198.0,0.1467998]
[1725144648615,1.29581342,59199.0,59198.0,0.1467998]
[1725144651984,1.32231467,59199.0,59198.0,0.1467998]
[1725144652416,1.32231467,59199.0,59198.0,0.0671998]
[1725144654869,1.29581342,59199.0,59198.0,0.0671998]
[1725144655100,1.29581342,59199.0,59198.0,0.0018998]
[1725144656545,1.29581342,59199.0,59198.0,0.0620998]
[1725144657706,1.12689242,59199.0,59198.0,0.0620998]
[1725144658150,1.15339353,59199.0,59198.0,0.0620998]
[1725144658833,1.32231453,59199.0,59198.0,0.0620998]
[1725144659045,1.15339353,59199.0,59198.0,0.0018998]
[1725144659458,0.8831512,59199.0,59198.0,0.0013998]
[1725144659690,0.88981842,59199.0,59198.0,0.0013998]
[1725144664289,0.03316833,59199.0,59198.0,0.0013998]
[1725144666350,0.20208933,59199.0,59198.0,0.0013998]
[1725144666553,0.03316833,59199.0,59198.0,0.0013998]
[1725144666936,0.03316833,59199.0,59198.0,0.1703238]
[1725144667137,0.03316833,59199.0,59198.0,0.0013998]
[1725144670890,0.20208933,59199.0,59198.0,0.0013998]
[1725144672893,0.20290733,59199.0,59198.0,0.0013998]
[1725144675561,0.54075033,59199.0,59198.0,0.0013998]
[1725144675785,1.05266469,59199.0,59198.0,0.0013998]
[1725144676004,1.12946469,59199.0,59198.0,0.0013998]
[1725144676206,1.46055874,59199.0,59198.0,0.0013998]
[1725144676709,1.46055874,59199.0,59198.0,0.0008998]
[1725144676927,1.46055874,59199.0,59198.0,0.0018998]
[1725144677370,1.46055874,59199.0,59198.0,0.0008998]
[1725144677818,1.46055874,59199.0,59198.0,0.0018998]
[1725144682132,1.56055874,59199.0,59198.0,0.0018998]
[1725144684433,2.41720883,59199.0,59198.0,0.0018998]
[1725144685681,2.18521865,59199.0,59198.0,0.0018998]
[1725144686380,2.35413965,59199.0,59198.0,0.0018998]
[1725144691226,2.27733965,59199.0,59198.0,0.0018998]
[1725144691734,2.21663965,59199.0,59198.0,0.0018998]
[1725144696137,2.24396083,59199.0,59198.0,0.0018998]
[1725144696365,0.506808,59194.0,59193.0,0.0648]
[1725144696693,0.34495482,59194.0,59193.0,0.0648]
[1725144697211,0.51389082,59194.0,59193.0,0.0648]
[1725144698554,0.17701882,59194.0,59193.0,0.0648]
[1725144698774,0.17801882,59194.0,59193.0,0.0658]
[1725144702236,1.03276911,59194.0,59193.0,0.0658]
[1725144707953,1.03276911,59194.0,59193.0,0.0666998]
[1725144717385,0.86383311,59194.0,59193.0,0.0666998]
[1725144719607,1.03276911,59194.0,59193.0,0.0666998]
[1725144720249,1.03358711,59194.0,59193.0,0.0666998]
[1725144722971,0.86465111,59194.0,59193.0,0.0666998]
[1725144727214,1.03358711,59194.0,59193.0,0.0666998]
[1725144727615,0.89115442,59194.0,59193.0,0.0666998]
[1725144728676,0.86465111,59194.0,59193.0,0.0666998]
[1725144732155,0.89115442,59194.0,59193.0,0.0666998]
[1725144733468,0.89115442,59194.0,59193.0,0.5735148]
[1725144733898,0.89115442,59194.0,59193.0,0.9622136]
[1725144734106,0.89115442,59194.0,59193.0,1.0447136]
[1725144734324,0.8840716,59194.0,59193.0,1.0447136]
[1725144734752,0.89153157,59194.0,59193.0,1.0447136]
[1725144736612,0.89153157,59194.0,59193.0,0.9938918]
[1725144736818,0.89153157,59194.0,59193.0,1.0447136]
[1725144738510,0.89153157,59194.0,59193.0,0.9938918]
[1725144738717,0.86502826,59194.0,59193.0,0.9938918]
[1725144742094,0.89153147,59194.0,59193.0,0.9938918]
[1725144744251,0.89153147,59194.0,59193.0,0.6560148]
[1725144748786,0.86502826,59194.0,59193.0,0.6560148]
[1725144749895,0.63344909,59194.0,59193.0,0.6560148]
[1725144750657,0.63344909,59194.0,59193.0,0.9938918]
[1725144752188,0.65995217,59194.0,59193.0,0.9938918]
[1725144752833,0.65995217,59194.0,59193.0,0.6560148]
[1725144753937,0.66506559,59194.0,59193.0,0.6560148]
[1725144755031,0.63856251,59194.0,59193.0,0.6560148]
[1725144758142,0.66506549,59194.0,59193.0,0.6560148]
[1725144758661,0.63856251,59194.0,59193.0,0.6560148]
[1725144759316,0.63856251,59194.0,59193.0,0.5735148]
[1725144762042,0.66506543,59194.0,59193.0,0.5735148]
[1725144764712,0.63856251,59194.0,59193.0,0.5735148]
[1725144767893,0.63856251,59194.0,59193.0,0.2356378]
[1725144768101,0.66506553,59194.0,59193.0,0.2356378]
[1725144769931,0.66506553,59194.0,59193.0,0.5735148]
[1725144772119,0.63856251,59194.0,59193.0,0.5735148]
[1725144773597,0.63856251,59194.0,59193.0,1.09921421]
[1725144773828,0.63856251,59194.0,59193.0,1.10421421]
[1725144774031,0.63856251,59194.0,59193.0,1.46509121]
[1725144774032,0.62598912,59194.0,59193.0,1.46509121]
[1725144774467,0.63833879,59194.0,59193.0,1.46509121]
[1725144774707,0.63833879,59194.0,59193.0,1.3584688]
[1725144774942,0.63833879,59194.0,59193.0,1.80993443]
[1725144775185,0.63833879,59194.0,59193.0,1.73273981]
[1725144775409,0.6658403,59194.0,59193.0,1.80993396]
[1725144775656,0.6658403,59194.0,59193.0,1.44405696]
[1725144775901,0.6658403,59194.0,59193.0,0.9113918]
[1725144776125,0.6658403,59194.0,59193.0,0.2216337]
[1725144776346,0.6658403,59194.0,59193.0,0.1698378]
[1725144776347,0.6648403,59194.0,59193.0,0.1698378]
[1725144776773,0.6648403,59194.0,59193.0,0.1788378]
[1725144776774,0.6658403,59194.0,59193.0,0.1788378]
[1725144777200,0.6648403,59194.0,59193.0,0.1698378]
[1725144777428,0.6658403,59194.0,59193.0,0.1838378]
[1725144777655,0.6668403,59194.0,59193.0,0.1978378]
[1725144777870,0.6668403,59194.0,59193.0,0.2486337]
[1725144778576,0.6658403,59194.0,59193.0,0.2346337]
[1725144778790,0.63933879,59194.0,59193.0,0.23464104]
[1725144779016,0.63833879,59194.0,59193.0,0.22064104]
[1725144779228,0.63933879,59194.0,59193.0,0.23464104]
[1725144780552,0.63933879,59194.0,59193.0,0.23464142]
[1725144780769,0.64033879,59194.0,59193.0,0.24364142]
[1725144781270,0.63933879,59194.0,59193.0,0.1838378]
[1725144781484,0.64033879,59194.0,59193.0,0.1918378]
[1725144782111,0.66684113,59194.0,59193.0,0.24264142]
[1725144783004,0.66684113,59194.0,59193.0,0.1918378]
[1725144783218,0.66684113,59194.0,59193.0,0.24264142]
[1725144784301,0.66584113,59194.0,59193.0,0.23464142]
[1725144784515,0.66584113,59194.0,59193.0,0.22964142]
[1725144784737,0.63933879,59194.0,59193.0,0.29294142]
[1725144784962,0.63933879,59194.0,59193.0,0.30094142]
[1725144784963,0.64033879,59194.0,59193.0,0.30094142]
[1725144785172,0.63933879,59194.0,59193.0,0.28394142]
[1725144785389,0.64033879,59194.0,59193.0,0.22964142]
[1725144785605,0.64133879,59194.0,59193.0,0.23764142]
[1725144786992,0.64133879,59194.0,59193.0,0.0178998]
[1725144788128,0.66784125,59194.0,59193.0,0.0178998]
[1725144788573,0.66784125,59194.0,59193.0,0.1868378]
[1725144788833,0.64133879,59194.0,59193.0,0.1868378]
[1725144791912,0.66784126,59194.0,59193.0,0.1868378]
[1725144794723,0.64133879,59194.0,59193.0,0.1868378]
[1725144796013,0.36441167,59194.0,59193.0,0.1868378]
[1725144797998,0.39091416,59194.0,59193.0,0.1868378]
[1725144800419,0.39091416,59194.0,59193.0,0.0178998]
[1725144802063,0.87121967,59194.0,59193.0,0.0178998]
[1725144802737,0.86921967,59194.0,59193.0,0.0098998]
[1725144802955,0.86821967,59194.0,59193.0,0.0008998]
[1725144803196,0.86921967,59194.0,59193.0,0.0078998]
[1725144803859,0.87021967,59194.0,59193.0,0.0158998]
[1725144804314,0.87021967,59194.0,59193.0,0.0088998]
[1725144804558,0.86921967,59194.0,59193.0,0.0088998]
[1725144804783,0.87021967,59194.0,59193.0,0.0148998]
[1725144805912,0.89672257,59194.0,59193.0,0.0148998]
[1725144808826,0.87021967,59194.0,59193.0,0.0148998]
[1725144814848,0.89672289,59194.0,59193.0,0.0148998]
[1725144820727,0.87021967,59194.0,59193.0,0.0148998]
[1725144823917,0.89672286,59194.0,59193.0,0.0148998]
[1725144836934,0.87021967,59194.0,59193.0,0.0148998]
[1725144838509,0.89672296,59194.0,59193.0,0.0148998]
[1725144846491,0.38991496,59194.0,59193.0,0.1608998]
[1725144846716,0.53234767,59194.0,59193.0,0.1608998]
[1725144847823,0.53234767,59194.0,59193.0,0.0790998]
[1725144862370,0.53234767,59194.0,59193.0,0.0148998]
[1725144863611,0.87021967,59194.0,59193.0,0.0148998]
[1725144870014,0.53234767,59194.0,59193.0,0.0148998]
[1725144879221,0.87021967,59194.0,59193.0,0.0148998]
[1725144882100,0.63257297,59194.0,59193.0,0.0148998]
[1725144886677,1.90997297,59194.0,59193.0,0.0148998]
[1725144889170,1.615272,59194.0,59193.0,0.0148998]
[1725144889391,1.79343939,59194.0,59193.0,0.0148998]
[1725144892576,1.79425739,59194.0,59193.0,0.0148998]
[1725144897307,1.82076072,59194.0,59193.0,0.0148998]
[1725144912677,1.79425739,59194.0,59193.0,0.0148998]
[1725144912905,1.82076071,59194.0,59193.0,0.0148998]
[1725144914718,1.82076071,59194.0,59193.0,0.0803998]
[1725144922332,1.48288871,59194.0,59193.0,0.0803998]
[1725144927770,1.48288871,59194.0,59193.0,0.0148998]
[1725144928826,1.82076071,59194.0,59193.0,0.0148998]
[1725144937016,2.60312712,59194.0,59193.0,0.0148998]
[1725144937253,2.66812712,59194.0,59193.0,0.0148998]
[1725144938097,2.33025512,59194.0,59193.0,0.0148998]
[1725144938740,2.3037518,59194.0,59193.0,0.0148998]
[1725144940404,2.3302555,59194.0,59193.0,0.0148998]
[1725144941674,2.2652555,59194.0,59193.0,0.0148998]
[1725144945339,2.28689859,59194.0,59193.0,0.0148998]
[1725144950373,2.26039489,59194.0,59193.0,0.0148998]
[1725144951883,2.28689914,59194.0,59193.0,0.0148998]
[1725144953695,2.26525605,59194.0,59193.0,0.0148998]
[1725144954545,2.15863364,59194.0,59193.0,0.0148998]
[1725144956863,2.15863364,59194.0,59193.0,0.0788998]
[1725144957079,2.15863364,59194.0,59193.0,0.1541998]
[1725144957080,1.82076164,59194.0,59193.0,0.1541998]
[1725144958630,1.79425739,59194.0,59193.0,0.1541998]
[1725144960393,1.82076137,59194.0,59193.0,0.1541998]
[1725144963251,2.22463337,59194.0,59193.0,0.0148998]
[1725144963879,2.15863337,59194.0,59193.0,0.0148998]
[1725144970177,2.18032167,59194.0,59193.0,0.0148998]
[1725144971568,2.15381769,59194.0,59193.0,0.0148998]
[1725144972009,2.1803222,59194.0,59193.0,0.0148998]
[1725144974117,2.1803222,59194.0,59193.0,0.0088998]
[1725144974557,2.1803222,59194.0,59193.0,0.0138998]
[1725144974987,2.1803222,59194.0,59193.0,0.0058998]
[1725144975204,2.1813222,59194.0,59193.0,0.0118998]
[1725144975678,2.1803222,59194.0,59193.0,0.0058998]
[1725144976093,2.1803222,59194.0,59193.0,0.0108998]
[1725144976503,2.1803222,59194.0,59193.0,0.0058998]
[1725144976731,2.1803222,59194.0,59193.0,0.0008998]
[1725144976969,2.1813222,59194.0,59193.0,0.0068998]
[1725144977181,2.1823222,59194.0,59193.0,0.0118998]
[1725144978210,2.1813222,59194.0,59193.0,0.0058998]
[1725144978421,2.1813222,59194.0,59193.0,0.0098998]
[1725144979056,2.1596339,59194.0,59193.0,0.0098998]
[1725144979305,2.1596339,59194.0,59193.0,0.0138998]
[1725144988688,2.13312939,59194.0,59193.0,0.0790998]
[1725144991002,2.15963359,59194.0,59193.0,0.0790998]
[1725145040569,1.90300276,59194.0,59193.0,0.0790998]
[1725145069333,1.89377137,59194.0,59193.0,0.0790998]
[1725145069536,1.9022329,59194.0,59193.0,0.0790998]
[1725145075913,2.15445531,59194.0,59193.0,0.0138998]
[1725145076177,2.06101016,59194.0,59193.0,0.0138998]
[1725145076446,2.01089208,59194.0,59193.0,0.0138998]
[1725145076672,2.34876408,59194.0,59193.0,0.0098998]
[1725145077113,2.36276408,59194.0,59193.0,0.0098998]
[1725145077619,2.34876408,59194.0,59193.0,0.0098998]
[1725145077987,2.35876408,59194.0,59193.0,0.0098998]
[1725145078230,2.35776408,59194.0,59193.0,0.0008998]
[1725145078701,2.37176408,59194.0,59193.0,0.0008998]
[1725145078893,2.35776408,59194.0,59193.0,0.0008998]
[1725145079380,2.36876408,59194.0,59193.0,0.0008998]
[1725145079603,2.35776408,59194.0,59193.0,0.0008998]
[1725145079837,2.36876408,59194.0,59193.0,0.0008998]
[1725145080326,2.35876408,59194.0,59193.0,0.0008998]
[1725145080551,2.36876408,59194.0,59193.0,0.0008998]
[1725145080998,2.35876408,59194.0,59193.0,0.0008998]
[1725145081229,2.34776408,59194.0,59193.0,0.0008998]
[1725145081471,2.35776408,59194.0,59193.0,0.0008998]
[1725145081699,2.36876408,59194.0,59193.0,0.0008998]
[1725145085927,3.38953325,59194.0,59193.0,0.0008998]
[1725145086144,3.39153325,59194.0,59193.0,0.0008998]
[1725145088272,3.92607625,59194.0,59193.0,0.0008998]
[1725145089119,3.87858525,59194.0,59193.0,0.0008998]
[1725145097147,3.57791225,59194.0,59193.0,0.0008998]
[1725145097361,3.49968325,59194.0,59193.0,0.0008998]